[Event "Titled Tuesday Blitz May 23 Late 2023"]
[White "Yanchenko, Roman"]
[Black "Rottenwohrer Suarez, Juan"]
[WhiteFideId "4137329"]
[BlackFideId "32068182"]
[WhiteElo "2491"]
[BlackElo "2174"]
[Result "1-0"]
[Round "03"]
[TimeControl "180+2"]
[Date "2023.05.23"]
[WhiteClock "0:01:28"]
[BlackClock "0:00:09"]

1. d4 {[%clk 0:03:00]}  Nf6 {[%clk 0:03:00]} 2. Nf3 {[%clk 0:03:00]}  g6 {[%clk 0:03:00]} 3. c4 {[%clk 0:03:01]}  Bg7 {[%clk 0:03:00]} 4. Nc3 {[%clk 0:03:01]}  d6 {[%clk 0:03:00]} 5. Bf4 {[%clk 0:03:01]}  O-O {[%clk 0:02:59]} 6. e3 {[%clk 0:03:02]}  c5 {[%clk 0:02:59]} 7. Be2 {[%clk 0:03:02]}  cxd4 {[%clk 0:02:58]} 8. exd4 {[%clk 0:03:02]}  d5 {[%clk 0:02:58]} 9. O-O {[%clk 0:03:02]}  Nc6 {[%clk 0:02:58]} 10. h3 {[%clk 0:03:02]}  a6 {[%clk 0:02:44]} 11. Re1 {[%clk 0:03:03]}  dxc4 {[%clk 0:02:43]} 12. Bxc4 {[%clk 0:03:03]}  b5 {[%clk 0:02:43]} 13. Bb3 {[%clk 0:03:03]}  Na5 {[%clk 0:02:43]} 14. Bc2 {[%clk 0:02:52]}  Bb7 {[%clk 0:02:42]} 15. Ne5 {[%clk 0:02:53]}  Rc8 {[%clk 0:02:41]} 16. Rc1 {[%clk 0:02:50]}  Nd5 {[%clk 0:02:40]} 17. Bd2 {[%clk 0:02:37]}  Nc4 {[%clk 0:02:39]} 18. Nxc4 {[%clk 0:02:36]}  Rxc4 {[%clk 0:02:40]} 19. Ne2 {[%clk 0:02:09]}  Nb4 {[%clk 0:02:22]} 20. Bxb4 {[%clk 0:02:08]}  Rxb4 {[%clk 0:02:21]} 21. Bb3 {[%clk 0:02:04]}  Bd5 {[%clk 0:02:09]} 22. Bxd5 {[%clk 0:01:47]}  Qxd5 {[%clk 0:02:10]} 23. b3 {[%clk 0:01:48]}  Bxd4 {[%clk 0:01:50]} 24. a3 {[%clk 0:01:47]}  Rxb3 {[%clk 0:01:34]} 25. Qxd4 {[%clk 0:01:43]}  Qxd4 {[%clk 0:01:08]} 26. Nxd4 {[%clk 0:01:44]}  Rxa3 {[%clk 0:01:09]} 27. Rxe7 {[%clk 0:01:44]}  b4 {[%clk 0:01:09]} 28. Rb7 {[%clk 0:01:42]}  a5 {[%clk 0:01:09]} 29. Rcc7 {[%clk 0:01:33]}  Ra1+ {[%clk 0:00:31]} 30. Kh2 {[%clk 0:01:33]}  Ra2 {[%clk 0:00:31]} 31. f3 {[%clk 0:01:32]}  Ra3 {[%clk 0:00:28]} 32. Ne6 {[%clk 0:01:28]}  Re8 {[%clk 0:00:09]} 33. Ng5 {[%clk 0:01:28]} 1-0


[Site "https://www.chess.com"]

[Event "Titled Tuesday Blitz May 23 Late 2023"]
[White "Dobre, Claudiu-Cristian"]
[Black "Zemlyanskii, Ivan"]
[WhiteFideId "1211854"]
[BlackFideId "24249971"]
[WhiteElo "2207"]
[BlackElo "2421"]
[Result "0-1"]
[Round "03"]
[TimeControl "180+2"]
[Date "2023.05.23"]
[WhiteClock "0:00:00"]
[BlackClock "0:00:58"]

1. e4 {[%clk 0:03:00]}  c5 {[%clk 0:02:59]} 2. b3 {[%clk 0:03:00]}  g6 {[%clk 0:02:53]} 3. Bb2 {[%clk 0:03:00]}  Nf6 {[%clk 0:02:53]} 4. Nc3 {[%clk 0:03:00]}  Bg7 {[%clk 0:02:51]} 5. Nd5 {[%clk 0:03:00]}  O-O {[%clk 0:02:45]} 6. Nxf6+ {[%clk 0:03:00]}  exf6 {[%clk 0:02:46]} 7. Bc4 {[%clk 0:03:00]}  Re8 {[%clk 0:02:42]} 8. Bd5 {[%clk 0:03:00]}  f5 {[%clk 0:02:32]} 9. Bxg7 {[%clk 0:02:59]}  Kxg7 {[%clk 0:02:33]} 10. d3 {[%clk 0:02:42]}  Nc6 {[%clk 0:02:29]} 11. Ne2 {[%clk 0:02:41]}  Nb4 {[%clk 0:02:23]} 12. O-O {[%clk 0:02:41]}  Nxd5 {[%clk 0:02:20]} 13. exd5 {[%clk 0:02:41]}  d6 {[%clk 0:02:13]} 14. Qd2 {[%clk 0:02:37]}  Qf6 {[%clk 0:02:10]} 15. d4 {[%clk 0:02:19]}  b6 {[%clk 0:02:06]} 16. dxc5 {[%clk 0:02:16]}  bxc5 {[%clk 0:02:06]} 17. c4 {[%clk 0:02:15]}  Bd7 {[%clk 0:01:59]} 18. Nc3 {[%clk 0:02:06]}  f4 {[%clk 0:01:46]} 19. f3 {[%clk 0:01:45]}  Re3 {[%clk 0:01:43]} 20. Ne4 {[%clk 0:01:43]}  Qe5 {[%clk 0:01:42]} 21. b4 {[%clk 0:01:05]}  f5 {[%clk 0:01:35]} 22. Nf2 {[%clk 0:00:49]}  Re2 {[%clk 0:01:29]} 23. Qc1 {[%clk 0:00:45]}  cxb4 {[%clk 0:01:27]} 24. Rb1 {[%clk 0:00:09]}  a5 {[%clk 0:01:01]} 25. a3 {[%clk 0:00:09]}  Qd4 {[%clk 0:01:02]} 26. axb4 {[%clk 0:00:03]}  axb4 {[%clk 0:01:03]} 27. Qd1 {[%clk 0:00:03]}  Rd2 {[%clk 0:01:02]} 28. Qb3 {[%clk 0:00:03]}  Raa2 {[%clk 0:01:01]} 29. Rbd1 {[%clk 0:00:00]}  Rxf2 {[%clk 0:00:58]} 0-1


[Site "https://www.chess.com"]

[Event "Titled Tuesday Blitz May 23 Late 2023"]
[White "Koutlas, Nikolaos"]
[Black "Boyer, Mahel"]
[WhiteFideId "25827138"]
[BlackFideId "45102422"]
[WhiteElo "2215"]
[BlackElo "2439"]
[Result "0-1"]
[Round "03"]
[TimeControl "180+2"]
[Date "2023.05.23"]
[WhiteClock "0:00:11"]
[BlackClock "0:00:48"]

1. c4 {[%clk 0:02:57]}  e5 {[%clk 0:02:47]} 2. g3 {[%clk 0:02:56]}  c6 {[%clk 0:02:44]} 3. Nf3 {[%clk 0:02:52]}  e4 {[%clk 0:02:44]} 4. Nd4 {[%clk 0:02:52]}  Qb6 {[%clk 0:02:42]} 5. e3 {[%clk 0:02:45]}  d5 {[%clk 0:02:41]} 6. Nc3 {[%clk 0:02:45]}  Nf6 {[%clk 0:02:41]} 7. d3 {[%clk 0:02:44]}  exd3 {[%clk 0:02:39]} 8. Bxd3 {[%clk 0:02:43]}  dxc4 {[%clk 0:02:37]} 9. Bxc4 {[%clk 0:02:43]}  h5 {[%clk 0:02:33]} 10. h3 {[%clk 0:02:32]}  Nbd7 {[%clk 0:02:33]} 11. f4 {[%clk 0:02:26]}  Bb4 {[%clk 0:02:31]} 12. O-O {[%clk 0:02:10]}  Nc5 {[%clk 0:02:30]} 13. Kh2 {[%clk 0:02:07]}  Bxc3 {[%clk 0:01:31]} 14. bxc3 {[%clk 0:01:53]}  Nce4 {[%clk 0:01:32]} 15. Ba3 {[%clk 0:01:47]}  Ng4+ {[%clk 0:00:56]} 16. hxg4 {[%clk 0:01:28]}  hxg4+ {[%clk 0:00:56]} 17. Kg2 {[%clk 0:01:24]}  Rh3 {[%clk 0:00:57]} 18. Ne2 {[%clk 0:00:41]}  Qxe3 {[%clk 0:00:55]} 19. Qd3 {[%clk 0:00:38]}  Qxd3 {[%clk 0:00:46]} 20. Bxd3 {[%clk 0:00:37]}  Bf5 {[%clk 0:00:47]} 21. Nd4 {[%clk 0:00:34]}  Rxg3+ {[%clk 0:00:46]} 22. Kh2 {[%clk 0:00:29]}  Rh3+ {[%clk 0:00:47]} 23. Kg1 {[%clk 0:00:29]}  Rg3+ {[%clk 0:00:48]} 24. Kh1 {[%clk 0:00:29]}  O-O-O {[%clk 0:00:49]} 25. Bxe4 {[%clk 0:00:11]}  Rh8# {[%clk 0:00:48]} 0-1


[Site "https://www.chess.com"]

[Event "Titled Tuesday Blitz May 23 Late 2023"]
[White "Matinian, Nikita"]
[Black "Kovalevsky, Stanislav"]
[WhiteFideId "24129100"]
[BlackFideId "13508598"]
[WhiteElo "2422"]
[BlackElo "2174"]
[Result "0-1"]
[Round "03"]
[TimeControl "180+2"]
[Date "2023.05.23"]
[WhiteClock "0:00:14"]
[BlackClock "0:00:11"]

1. e4 {[%clk 0:02:59]}  e6 {[%clk 0:02:59]} 2. d4 {[%clk 0:02:58]}  d5 {[%clk 0:03:00]} 3. Nc3 {[%clk 0:02:59]}  dxe4 {[%clk 0:03:01]} 4. Nxe4 {[%clk 0:02:59]}  Nf6 {[%clk 0:03:01]} 5. Nxf6+ {[%clk 0:03:00]}  gxf6 {[%clk 0:03:01]} 6. Nf3 {[%clk 0:03:00]}  Nc6 {[%clk 0:03:02]} 7. Bb5 {[%clk 0:02:59]}  Bd7 {[%clk 0:02:53]} 8. c3 {[%clk 0:02:53]}  Rg8 {[%clk 0:02:47]} 9. O-O {[%clk 0:02:52]}  Ne7 {[%clk 0:02:47]} 10. Bxd7+ {[%clk 0:02:49]}  Qxd7 {[%clk 0:02:48]} 11. Qe2 {[%clk 0:02:47]}  h5 {[%clk 0:02:42]} 12. a4 {[%clk 0:02:46]}  Qd5 {[%clk 0:02:32]} 13. Bf4 {[%clk 0:02:37]}  O-O-O {[%clk 0:02:23]} 14. Kh1 {[%clk 0:02:28]}  Rg4 {[%clk 0:02:08]} 15. Be3 {[%clk 0:02:13]}  Nf5 {[%clk 0:02:00]} 16. Ne1 {[%clk 0:01:58]}  Bd6 {[%clk 0:01:42]} 17. c4 {[%clk 0:01:47]}  Qc6 {[%clk 0:01:12]} 18. c5 {[%clk 0:01:31]}  Bxh2 {[%clk 0:00:51]} 19. Kxh2 {[%clk 0:01:31]}  Rdg8 {[%clk 0:00:51]} 20. f3 {[%clk 0:01:21]}  Rh4+ {[%clk 0:00:48]} 21. Kg1 {[%clk 0:01:19]}  Ng3 {[%clk 0:00:37]} 22. Kf2 {[%clk 0:01:01]}  Nxe2 {[%clk 0:00:36]} 23. Kxe2 {[%clk 0:01:02]}  e5 {[%clk 0:00:25]} 24. dxe5 {[%clk 0:00:58]}  Rxa4 {[%clk 0:00:22]} 25. Rxa4 {[%clk 0:00:56]}  Qxa4 {[%clk 0:00:23]} 26. exf6 {[%clk 0:00:57]}  Qc4+ {[%clk 0:00:21]} 27. Nd3 {[%clk 0:00:56]}  Rxg2+ {[%clk 0:00:21]} 28. Bf2 {[%clk 0:00:55]}  Qc2+ {[%clk 0:00:20]} 29. Ke3 {[%clk 0:00:55]}  Rg6 {[%clk 0:00:19]} 30. Bh4 {[%clk 0:00:53]}  Qc4 {[%clk 0:00:17]} 31. f4 {[%clk 0:00:50]}  Qe6+ {[%clk 0:00:16]} 32. Ne5 {[%clk 0:00:48]}  Rg2 {[%clk 0:00:17]} 33. Bf2 {[%clk 0:00:39]}  Qb3+ {[%clk 0:00:15]} 34. Ke4 {[%clk 0:00:38]}  Qb5 {[%clk 0:00:14]} 35. Nd3 {[%clk 0:00:33]}  Qc4+ {[%clk 0:00:12]} 36. Ke3 {[%clk 0:00:33]}  Rh2 {[%clk 0:00:12]} 37. Rd1 {[%clk 0:00:26]}  Rh3+ {[%clk 0:00:12]} 38. Ke2 {[%clk 0:00:26]}  b6 {[%clk 0:00:11]} 39. cxb6 {[%clk 0:00:24]}  axb6 {[%clk 0:00:11]} 40. Rd2 {[%clk 0:00:15]}  Qe4+ {[%clk 0:00:11]} 41. Kd1 {[%clk 0:00:14]}  Rxd3 {[%clk 0:00:11]} 0-1


[Site "https://www.chess.com"]

[Event "Titled Tuesday Blitz May 23 Late 2023"]
[White "D`Arruda, Ricardo D."]
[Black "Volkov, Maksim"]
[WhiteFideId "100692"]
[BlackFideId "54123070"]
[WhiteElo "2442"]
[BlackElo "2297"]
[Result "0-1"]
[Round "03"]
[TimeControl "180+2"]
[Date "2023.05.23"]
[WhiteClock "0:00:41"]
[BlackClock "0:01:14"]

1. Nf3 {[%clk 0:03:00]}  d5 {[%clk 0:03:00]} 2. d4 {[%clk 0:02:59]}  Nf6 {[%clk 0:02:59]} 3. c4 {[%clk 0:02:59]}  e6 {[%clk 0:03:00]} 4. Nc3 {[%clk 0:02:59]}  c6 {[%clk 0:03:00]} 5. e3 {[%clk 0:02:58]}  Nbd7 {[%clk 0:03:00]} 6. Bd3 {[%clk 0:02:58]}  dxc4 {[%clk 0:03:00]} 7. Bxc4 {[%clk 0:02:57]}  b5 {[%clk 0:03:01]} 8. Bb3 {[%clk 0:02:57]}  Bb7 {[%clk 0:02:57]} 9. O-O {[%clk 0:02:57]}  Bd6 {[%clk 0:02:41]} 10. e4 {[%clk 0:02:55]}  e5 {[%clk 0:02:40]} 11. dxe5 {[%clk 0:02:52]}  Nxe5 {[%clk 0:02:40]} 12. Bg5 {[%clk 0:02:51]}  O-O {[%clk 0:02:37]} 13. Re1 {[%clk 0:02:44]}  h6 {[%clk 0:02:35]} 14. Bh4 {[%clk 0:02:43]}  Re8 {[%clk 0:02:28]} 15. Nd4 {[%clk 0:02:32]}  Ng6 {[%clk 0:02:18]} 16. Nf5 {[%clk 0:02:17]}  Be5 {[%clk 0:02:11]} 17. Bg3 {[%clk 0:02:08]}  b4 {[%clk 0:02:11]} 18. Na4 {[%clk 0:02:05]}  Bxg3 {[%clk 0:02:04]} 19. Nxg3 {[%clk 0:02:02]}  Qa5 {[%clk 0:02:02]} 20. Rc1 {[%clk 0:01:51]}  Rad8 {[%clk 0:02:01]} 21. Qf3 {[%clk 0:01:50]}  Ne5 {[%clk 0:01:56]} 22. Qf5 {[%clk 0:01:48]}  Bc8 {[%clk 0:01:56]} 23. Rc5 {[%clk 0:01:24]}  Qxc5 {[%clk 0:01:52]} 24. Nxc5 {[%clk 0:01:25]}  Bxf5 {[%clk 0:01:52]} 25. Nxf5 {[%clk 0:01:25]}  Nd3 {[%clk 0:01:47]} 26. Nxd3 {[%clk 0:01:26]}  Rxd3 {[%clk 0:01:48]} 27. f3 {[%clk 0:01:26]}  Nd7 {[%clk 0:01:33]} 28. Rc1 {[%clk 0:01:23]}  Ne5 {[%clk 0:01:28]} 29. h4 {[%clk 0:01:06]}  h5 {[%clk 0:01:27]} 30. Kh2 {[%clk 0:01:01]}  g6 {[%clk 0:01:27]} 31. Ng3 {[%clk 0:01:00]}  Rd2 {[%clk 0:01:27]} 32. Nf1 {[%clk 0:00:59]}  Rxb2 {[%clk 0:01:24]} 33. Kg3 {[%clk 0:00:55]}  Kg7 {[%clk 0:01:23]} 34. Ne3 {[%clk 0:00:55]}  Rd8 {[%clk 0:01:20]} 35. f4 {[%clk 0:00:45]}  Rd3 {[%clk 0:01:18]} 36. fxe5 {[%clk 0:00:43]}  Rxe3+ {[%clk 0:01:18]} 37. Kf4 {[%clk 0:00:44]}  Rc3 {[%clk 0:01:14]} 38. Rd1 {[%clk 0:00:41]}  Rf2+ {[%clk 0:01:14]} 39. Kg5 {[%clk 0:00:41]}  Rg3# {[%clk 0:01:14]} 0-1


[Site "https://www.chess.com"]

[Event "Titled Tuesday Blitz May 23 Late 2023"]
[White "Morefield, Jason"]
[Black "Wizard_of_Odds"]
[WhiteFideId "30920825"]
[WhiteElo "2171"]
[BlackElo "2440"]
[Result "1-0"]
[Round "03"]
[TimeControl "180+2"]
[Date "2023.05.23"]
[WhiteClock "0:00:20"]
[BlackClock "0:00:00"]

1. e4 {[%clk 0:03:00]}  c5 {[%clk 0:02:58]} 2. Nf3 {[%clk 0:03:00]}  d6 {[%clk 0:02:59]} 3. Bb5+ {[%clk 0:03:00]}  Nd7 {[%clk 0:02:59]} 4. c4 {[%clk 0:03:01]}  Nf6 {[%clk 0:02:50]} 5. Nc3 {[%clk 0:03:00]}  e6 {[%clk 0:02:48]} 6. O-O {[%clk 0:03:00]}  Be7 {[%clk 0:02:47]} 7. d4 {[%clk 0:02:59]}  cxd4 {[%clk 0:02:46]} 8. Qxd4 {[%clk 0:03:00]}  a6 {[%clk 0:02:42]} 9. Bxd7+ {[%clk 0:03:00]}  Bxd7 {[%clk 0:02:35]} 10. e5 {[%clk 0:02:54]}  dxe5 {[%clk 0:02:35]} 11. Nxe5 {[%clk 0:02:54]}  Qc7 {[%clk 0:02:32]} 12. Bf4 {[%clk 0:02:50]}  Qc5 {[%clk 0:02:05]} 13. Qxc5 {[%clk 0:02:41]}  Bxc5 {[%clk 0:02:04]} 14. Rfd1 {[%clk 0:02:41]}  Rd8 {[%clk 0:01:58]} 15. Nd3 {[%clk 0:02:34]}  Be7 {[%clk 0:01:35]} 16. h3 {[%clk 0:02:29]}  O-O {[%clk 0:01:32]} 17. b3 {[%clk 0:02:23]}  h6 {[%clk 0:01:27]} 18. a4 {[%clk 0:02:20]}  Bc6 {[%clk 0:01:13]} 19. f3 {[%clk 0:02:15]}  g5 {[%clk 0:01:08]} 20. Be3 {[%clk 0:02:13]}  Bd6 {[%clk 0:00:52]} 21. Kf2 {[%clk 0:02:06]}  e5 {[%clk 0:00:42]} 22. Bb6 {[%clk 0:02:04]}  Rd7 {[%clk 0:00:41]} 23. Re1 {[%clk 0:02:00]}  Re8 {[%clk 0:00:40]} 24. Ne4 {[%clk 0:01:39]}  Nxe4+ {[%clk 0:00:38]} 25. fxe4 {[%clk 0:01:40]}  Bc7 {[%clk 0:00:25]} 26. Bxc7 {[%clk 0:01:40]}  Rxd3 {[%clk 0:00:21]} 27. Re3 {[%clk 0:01:40]}  Rd2+ {[%clk 0:00:18]} 28. Kf1 {[%clk 0:01:32]}  Re7 {[%clk 0:00:17]} 29. Bb6 {[%clk 0:01:30]}  Red7 {[%clk 0:00:16]} 30. Rae1 {[%clk 0:01:23]}  f6 {[%clk 0:00:14]} 31. R1e2 {[%clk 0:01:16]}  Rd1+ {[%clk 0:00:13]} 32. Kf2 {[%clk 0:01:13]}  Kf7 {[%clk 0:00:14]} 33. a5 {[%clk 0:01:09]}  Kg6 {[%clk 0:00:13]} 34. Rb2 {[%clk 0:01:04]}  Rc1 {[%clk 0:00:11]} 35. Kg3 {[%clk 0:00:48]}  h5 {[%clk 0:00:10]} 36. Rf2 {[%clk 0:00:47]}  h4+ {[%clk 0:00:09]} 37. Kh2 {[%clk 0:00:33]}  Rdd1 {[%clk 0:00:09]} 38. g4 {[%clk 0:00:33]}  Rh1+ {[%clk 0:00:02]} 39. Kg2 {[%clk 0:00:34]}  Rhg1+ {[%clk 0:00:03]} 40. Kh2 {[%clk 0:00:32]}  Rh1+ {[%clk 0:00:03]} 41. Kg2 {[%clk 0:00:33]}  Rhg1+ {[%clk 0:00:04]} 42. Kf3 {[%clk 0:00:33]}  Rg3+ {[%clk 0:00:04]} 43. Ke2 {[%clk 0:00:34]}  Rxe3+ {[%clk 0:00:04]} 44. Kxe3 {[%clk 0:00:28]}  Rc3+ {[%clk 0:00:04]} 45. Kd2 {[%clk 0:00:27]}  Rxh3 {[%clk 0:00:04]} 46. Bd8 {[%clk 0:00:27]}  Bxe4 {[%clk 0:00:02]} 47. Rxf6+ {[%clk 0:00:28]}  Kg7 {[%clk 0:00:02]} 48. Rd6 {[%clk 0:00:27]}  Rxb3 {[%clk 0:00:02]} 49. Bxg5 {[%clk 0:00:26]}  Kf7 {[%clk 0:00:02]} 50. Bxh4 {[%clk 0:00:26]}  Rb4 {[%clk 0:00:02]} 51. Kc3 {[%clk 0:00:25]}  Rb1 {[%clk 0:00:01]} 52. Bd8 {[%clk 0:00:23]}  Bc6 {[%clk 0:00:02]} 53. g5 {[%clk 0:00:22]}  e4 {[%clk 0:00:02]} 54. g6+ {[%clk 0:00:19]}  Kg7 {[%clk 0:00:03]} 55. Bb6 {[%clk 0:00:20]}  Rg1 {[%clk 0:00:00]} 56. Bxg1 {[%clk 0:00:20]} 1-0


[Site "https://www.chess.com"]

[Event "Titled Tuesday Blitz May 23 Late 2023"]
[White "Buchenau, Frank"]
[Black "Maltsevskaya, Aleksandra"]
[WhiteFideId "4604350"]
[BlackFideId "24174041"]
[WhiteElo "2157"]
[BlackElo "2302"]
[Result "1-0"]
[Round "03"]
[TimeControl "180+2"]
[Date "2023.05.23"]
[WhiteClock "0:00:14"]
[BlackClock "0:00:00"]

1. e4 {[%clk 0:03:00]}  c5 {[%clk 0:03:00]} 2. Nf3 {[%clk 0:03:00]}  e6 {[%clk 0:03:00]} 3. d4 {[%clk 0:03:00]}  cxd4 {[%clk 0:03:01]} 4. Nxd4 {[%clk 0:03:00]}  Nf6 {[%clk 0:03:01]} 5. Nc3 {[%clk 0:02:59]}  Nc6 {[%clk 0:03:02]} 6. Be3 {[%clk 0:02:58]}  Bb4 {[%clk 0:03:02]} 7. Bd3 {[%clk 0:02:35]}  d5 {[%clk 0:03:01]} 8. Nxc6 {[%clk 0:02:23]}  bxc6 {[%clk 0:03:01]} 9. e5 {[%clk 0:02:19]}  Nd7 {[%clk 0:03:00]} 10. Qg4 {[%clk 0:02:13]}  Bxc3+ {[%clk 0:01:47]} 11. bxc3 {[%clk 0:02:14]}  g6 {[%clk 0:01:47]} 12. Qg3 {[%clk 0:01:57]}  h5 {[%clk 0:01:34]} 13. h4 {[%clk 0:01:45]}  a5 {[%clk 0:01:27]} 14. O-O {[%clk 0:01:42]}  Ba6 {[%clk 0:01:21]} 15. Rab1 {[%clk 0:01:40]}  Bxd3 {[%clk 0:01:21]} 16. cxd3 {[%clk 0:01:40]}  O-O {[%clk 0:01:21]} 17. Rb7 {[%clk 0:01:34]}  Rb8 {[%clk 0:01:09]} 18. Rfb1 {[%clk 0:01:34]}  Rxb7 {[%clk 0:01:09]} 19. Rxb7 {[%clk 0:01:35]}  Qc8 {[%clk 0:01:08]} 20. Rb1 {[%clk 0:01:18]}  c5 {[%clk 0:01:08]} 21. Bg5 {[%clk 0:01:10]}  Re8 {[%clk 0:01:01]} 22. Bf6 {[%clk 0:00:59]}  Nxf6 {[%clk 0:00:57]} 23. exf6 {[%clk 0:00:59]}  e5 {[%clk 0:00:55]} 24. Rb5 {[%clk 0:00:46]}  a4 {[%clk 0:00:44]} 25. Rb6 {[%clk 0:00:38]}  Qf5 {[%clk 0:00:43]} 26. Qf3 {[%clk 0:00:36]}  e4 {[%clk 0:00:33]} 27. Qxf5 {[%clk 0:00:34]}  gxf5 {[%clk 0:00:34]} 28. dxe4 {[%clk 0:00:32]}  dxe4 {[%clk 0:00:27]} 29. Rc6 {[%clk 0:00:32]}  Rd8 {[%clk 0:00:12]} 30. Rxc5 {[%clk 0:00:28]}  Rd1+ {[%clk 0:00:12]} 31. Kh2 {[%clk 0:00:28]}  Rd2 {[%clk 0:00:12]} 32. Kg3 {[%clk 0:00:28]}  f4+ {[%clk 0:00:08]} 33. Kxf4 {[%clk 0:00:28]}  Rxf2+ {[%clk 0:00:09]} 34. Kxe4 {[%clk 0:00:27]}  Rxa2 {[%clk 0:00:08]} 35. Rg5+ {[%clk 0:00:25]}  Kh7 {[%clk 0:00:06]} 36. Rg7+ {[%clk 0:00:21]}  Kh6 {[%clk 0:00:07]} 37. Kf3 {[%clk 0:00:20]}  a3 {[%clk 0:00:05]} 38. Rxf7 {[%clk 0:00:19]}  Kg6 {[%clk 0:00:05]} 39. Ra7 {[%clk 0:00:18]}  Kxf6 {[%clk 0:00:05]} 40. Ra6+ {[%clk 0:00:18]}  Kf7 {[%clk 0:00:05]} 41. c4 {[%clk 0:00:17]}  Ra1 {[%clk 0:00:04]} 42. c5 {[%clk 0:00:14]}  a2 {[%clk 0:00:04]} 43. Kg3 {[%clk 0:00:14]}  Rc1 {[%clk 0:00:03]} 44. Rxa2 {[%clk 0:00:14]}  Rxc5 {[%clk 0:00:04]} 45. Rf2+ {[%clk 0:00:14]}  Kg6 {[%clk 0:00:04]} 46. Re2 {[%clk 0:00:13]}  Rc4 {[%clk 0:00:05]} 47. Rf2 {[%clk 0:00:13]}  Rg4+ {[%clk 0:00:04]} 48. Kh3 {[%clk 0:00:13]}  Rc4 {[%clk 0:00:05]} 49. Rf3 {[%clk 0:00:13]}  Rb4 {[%clk 0:00:04]} 50. Rg3+ {[%clk 0:00:13]}  Kh6 {[%clk 0:00:04]} 51. Rg5 {[%clk 0:00:13]}  Rb3+ {[%clk 0:00:04]} 52. Kh2 {[%clk 0:00:13]}  Rb4 {[%clk 0:00:03]} 53. Kg3 {[%clk 0:00:13]}  Rb3+ {[%clk 0:00:02]} 54. Kh2 {[%clk 0:00:13]}  Rb4 {[%clk 0:00:03]} 55. g3 {[%clk 0:00:13]}  Rb2+ {[%clk 0:00:03]} 56. Kg1 {[%clk 0:00:13]}  Rb1+ {[%clk 0:00:03]} 57. Kf2 {[%clk 0:00:13]}  Rb2+ {[%clk 0:00:04]} 58. Kf3 {[%clk 0:00:14]}  Rb3+ {[%clk 0:00:04]} 59. Kf4 {[%clk 0:00:14]}  Rb4+ {[%clk 0:00:05]} 60. Kf5 {[%clk 0:00:14]}  Rb5+ {[%clk 0:00:05]} 61. Kf6 {[%clk 0:00:15]}  Rb6+ {[%clk 0:00:05]} 62. Kf7 {[%clk 0:00:14]}  Rb7+ {[%clk 0:00:06]} 63. Ke6 {[%clk 0:00:14]}  Rb6+ {[%clk 0:00:06]} 64. Kd7 {[%clk 0:00:15]}  Rb7+ {[%clk 0:00:00]} 65. Kc6 {[%clk 0:00:14]} 1-0


[Site "https://www.chess.com"]

[Event "Titled Tuesday Blitz May 23 Late 2023"]
[White "Prohaszka, Peter"]
[Black "Dudzinski, Pawel"]
[WhiteFideId "726265"]
[BlackFideId "1117890"]
[WhiteElo "2626"]
[BlackElo "2099"]
[Result "1-0"]
[Round "03"]
[TimeControl "180+2"]
[Date "2023.05.23"]
[WhiteClock "0:00:13"]
[BlackClock "0:00:00"]

1. d4 {[%clk 0:02:57]}  d5 {[%clk 0:02:58]} 2. Nf3 {[%clk 0:02:57]}  f5 {[%clk 0:02:56]} 3. Bf4 {[%clk 0:02:56]}  c6 {[%clk 0:02:57]} 4. e3 {[%clk 0:02:56]}  e6 {[%clk 0:02:56]} 5. c4 {[%clk 0:02:57]}  Nf6 {[%clk 0:02:57]} 6. Nc3 {[%clk 0:02:57]}  Be7 {[%clk 0:02:57]} 7. h3 {[%clk 0:02:57]}  O-O {[%clk 0:02:57]} 8. Qc2 {[%clk 0:02:56]}  Ne4 {[%clk 0:02:55]} 9. g4 {[%clk 0:02:55]}  Nd7 {[%clk 0:02:53]} 10. gxf5 {[%clk 0:02:47]}  exf5 {[%clk 0:02:52]} 11. cxd5 {[%clk 0:02:45]}  cxd5 {[%clk 0:02:47]} 12. Nxd5 {[%clk 0:02:41]}  Qa5+ {[%clk 0:02:47]} 13. Nc3 {[%clk 0:02:41]}  Bb4 {[%clk 0:02:47]} 14. Bc4+ {[%clk 0:02:22]}  Kh8 {[%clk 0:02:45]} 15. Rc1 {[%clk 0:02:23]}  Nb6 {[%clk 0:02:27]} 16. Bb3 {[%clk 0:02:23]}  Bd7 {[%clk 0:02:23]} 17. O-O {[%clk 0:02:18]}  Rac8 {[%clk 0:02:23]} 18. Ne5 {[%clk 0:02:10]}  Be8 {[%clk 0:02:07]} 19. Qe2 {[%clk 0:01:45]}  Bxc3 {[%clk 0:01:46]} 20. bxc3 {[%clk 0:01:44]}  Rxc3 {[%clk 0:01:44]} 21. Qb2 {[%clk 0:01:19]}  Bh5 {[%clk 0:01:24]} 22. f3 {[%clk 0:01:14]}  Rxc1 {[%clk 0:01:13]} 23. Rxc1 {[%clk 0:01:06]}  Nd2 {[%clk 0:01:05]} 24. Bd1 {[%clk 0:00:43]}  Ndc4 {[%clk 0:00:34]} 25. Qe2 {[%clk 0:00:27]}  Nxe5 {[%clk 0:00:21]} 26. Bxe5 {[%clk 0:00:27]}  Nd7 {[%clk 0:00:21]} 27. Bc7 {[%clk 0:00:21]}  Qd5 {[%clk 0:00:17]} 28. Kf2 {[%clk 0:00:17]}  Rc8 {[%clk 0:00:17]} 29. Bb3 {[%clk 0:00:15]}  Qxf3+ {[%clk 0:00:02]} 30. Qxf3 {[%clk 0:00:15]}  Bxf3 {[%clk 0:00:03]} 31. Kxf3 {[%clk 0:00:16]}  Nf6 {[%clk 0:00:01]} 32. Rc2 {[%clk 0:00:14]}  Rxc7 {[%clk 0:00:00]} 33. Rxc7 {[%clk 0:00:13]} 1-0


[Site "https://www.chess.com"]

[Event "Titled Tuesday Blitz May 23 Late 2023"]
[White "Ehlvest, Jaan"]
[Black "Fernandez Siles, Luis"]
[WhiteFideId "4500016"]
[BlackFideId "2209420"]
[WhiteElo "2442"]
[BlackElo "2195"]
[Result "1-0"]
[Round "03"]
[TimeControl "180+2"]
[Date "2023.05.23"]
[WhiteClock "0:01:15"]
[BlackClock "0:00:48"]

1. e4 {[%clk 0:02:58]}  c5 {[%clk 0:02:59]} 2. Nf3 {[%clk 0:02:57]}  Nc6 {[%clk 0:02:59]} 3. Bb5 {[%clk 0:02:56]}  g6 {[%clk 0:02:59]} 4. Bxc6 {[%clk 0:02:53]}  dxc6 {[%clk 0:03:00]} 5. d3 {[%clk 0:02:50]}  Bg7 {[%clk 0:03:00]} 6. h3 {[%clk 0:02:49]}  Nf6 {[%clk 0:02:56]} 7. Nc3 {[%clk 0:02:48]}  Nd7 {[%clk 0:02:54]} 8. Be3 {[%clk 0:02:46]}  e5 {[%clk 0:02:51]} 9. Qd2 {[%clk 0:02:45]}  h6 {[%clk 0:02:51]} 10. O-O {[%clk 0:02:39]}  b6 {[%clk 0:02:50]} 11. Nh2 {[%clk 0:02:39]}  Nf8 {[%clk 0:02:44]} 12. f4 {[%clk 0:02:38]}  exf4 {[%clk 0:02:43]} 13. Rxf4 {[%clk 0:02:33]}  Be6 {[%clk 0:02:43]} 14. a4 {[%clk 0:02:26]}  a5 {[%clk 0:02:41]} 15. Rf2 {[%clk 0:02:20]}  Nd7 {[%clk 0:02:30]} 16. Raf1 {[%clk 0:02:07]}  Bd4 {[%clk 0:02:20]} 17. Nf3 {[%clk 0:01:59]}  Bxe3 {[%clk 0:02:16]} 18. Qxe3 {[%clk 0:01:58]}  Qe7 {[%clk 0:01:58]} 19. d4 {[%clk 0:01:41]}  Bc4 {[%clk 0:01:54]} 20. Rd1 {[%clk 0:01:35]}  Rd8 {[%clk 0:01:43]} 21. b3 {[%clk 0:01:33]}  Be6 {[%clk 0:01:25]} 22. d5 {[%clk 0:01:30]}  Bxd5 {[%clk 0:01:24]} 23. Nxd5 {[%clk 0:01:17]}  cxd5 {[%clk 0:01:22]} 24. Rxd5 {[%clk 0:01:17]}  Nf6 {[%clk 0:00:48]} 25. Re5 {[%clk 0:01:15]} 1-0


[Site "https://www.chess.com"]